Cogmind - Beta 13 @@@ ROGUE MODE // 2024.07.07 @ 20:45:39 Player: lexi^-^ Result: Destroyed by as-09730 with Assembled Heavy Rifle Performance ------------- Evolutions (0) 0 Regions Visited (2) 400 Robots Destroyed (19) 95 Value Destroyed (245) 245 Prototype IDs (0) 0 Alien Tech Used (0) 0 Bonus (0) 0 TOTAL SCORE: 740 Bonus ------- None Cogmind --------- Core Integrity 0/250 Matter 275/300 Energy 100/100 System Corruption 0% Temperature Cool (0) Movement Rolling (80) Location -10/Mines Parts ------- > --- POWER (1) -------- (None) > --- PROPULSION (2) --- Wheel > --- UTILITY (2) ------ Small Storage Unit Weapon Shielding > --- WEAPON (2) ------- Medium Laser > --- INVENTORY (8) ---- Sensor Array Signal Interpreter Improved Terrain Scanner Seismic Detector Hacking Suite Rocket Launcher Peak State ------------ > --- POWER ------------ Light Ion Engine > --- PROPULSION ------- Wheel Wheel > --- UTILITY ---------- Small Storage Unit Weapon Shielding > --- WEAPON ----------- Medium Laser Light Assault Rifle > --- INVENTORY -------- Light Ion Engine Wheel Wheel Sensor Array Signal Interpreter Improved Terrain Scanner Seismic Detector EM Pulse Gun [Rating: 8] Favorites ----------- Power Light Ion Engine Engine Light Ion Engine Propulsion Wheel Wheel Wheel Utility Small Storage Unit Storage Small Storage Unit Protection Light Armor Plating Weapon Medium Laser Energy Gun Medium Laser Ballistic Gun Light Assault Rifle Build | -11 -10 -10 ------- Run | Yrd Mat Min Slots Evolved . | . . . Power . | . . . Propulsion . | . . . Utility . | . . . Weapon . | . . . Parts Attached 16 | 8 4 4 Power 4 | 2 . 2 Engine 4 | 2 . 2 Core . | . . . Reactor . | . . . Propulsion 5 | 2 2 1 Treads . | . . . Leg . | . . . Wheel 5 | 2 2 1 Hover . | . . . Flight . | . . . Utility 4 | 1 2 1 Device . | . . . Storage 1 | 1 . . Processor . | . . . Hackware . | . . . Protection 3 | . 2 1 Artifact . | . . . Weapon 3 | 3 . . Energy Gun 2 | 2 . . Energy Cannon . | . . . Ballistic Gun 1 | 1 . . Ballistic Cannon . | . . . Launcher . | . . . Special Weapon . | . . . Impact Weapon . | . . . Slashing Weapon . | . . . Piercing Weapon . | . . . Special Melee Weapon . | . . . Unidentified Prototypes . | . . . Parts Lost 7 | . 1 6 Power 2 | . . 2 Propulsion 3 | . 1 2 Utility 1 | . . 1 Weapon 1 | . . 1 Highest Loss Streak 6 | . 1 6 To Critical Strikes . | . . . Average Slot Usage (%) 94 | . 95 85 Engine 13 | . 14 9 Wheel 27 | . 28 24 Storage 14 | . 14 14 Protection 10 | . 9 14 Energy Gun 14 | . 14 14 Ballistic Gun 13 | . 14 7 Naked Turns . | . . . Heaviest Build 14 | 13 14 14 Greatest Support 20 | 20 20 20 Greatest Overweight (x) 1 | . . 1 Average Overweight (x) . | . . . Largest Inventory Capacity 8 | 8 8 8 Average Capacity 7 | 7 8 8 Most Carried 8 | 6 8 8 Average Carried 6 | 2 7 7 Final Capacity 8 | 8 8 8 Final Carried 8 | 6 8 6 Class Distribution -------------------- 100% | Mutant Dominant Class ---------------- Mutant | -10/Materials Mutant | -10/Mines Resources | -11 -10 -10 ----------- Run | Yrd Mat Min Matter Collected 408 | 304 104 . Remotely . | . . . Salvage Created 551 | 202 349 . Parts 39 | 13 26 . Haulers Intercepted 1 | . 1 . Recyclers Shooed 2 | . 2 . Parts Field Recycled . | . . . Retrieved Matter . | . . . Parts Self-Destructed . | . . . Prevented . | . . . Kills | -11 -10 -10 ------- Run | Yrd Mat Min Combat Hostiles Destroyed 4 | . 4 . Guns 4 | . 4 . Classes Destroyed 8 | 3 5 . Worker 2 | 2 . . Builder 2 | . 2 . Tunneler 5 | 5 . . Hauler 1 | . 1 . Recycler 2 | 1 1 . Operator 1 | . 1 . Watcher 2 | . 2 . Grunt 4 | . 4 . Best Kill Streak 4 | 3 4 . Combat Bots Only 4 | . 4 . Max Kills in Single Turn 1 | 1 1 . Gunslinging . | . . . Exploded . | . . . Melee . | . . . Uniques/NPCs Destroyed . | . . . Combat | -11 -10 -10 -------- Run | Yrd Mat Min Hostile Shots Fired 78 | . 37 41 Missed 23 | . 11 12 Damage Taken 829 | . 286 543 Core 254 | . 33 221 Absorbed by Shields . | . . . Redirected to Shielding 3 | . . 3 Core Remaining (%) 100 | 100 . . Volleys Fired 74 | 24 50 . Largest 2 | 2 2 . Hottest 70 | 70 70 . Shots Fired 147 | 48 99 . Gun 147 | 48 99 . Cannon . | . . . Launcher . | . . . Special . | . . . Kinetic 74 | 24 50 . Thermal 73 | 24 49 . Explosive . | . . . Electromagnetic . | . . . Robot Hit Streak 7 | 7 7 . Robot Miss Streak 7 | 3 7 . Penetration Max . | . . . Secondary Targets 1 | . 1 . Max Gunslinging Chain 1 | . 1 . Shots Hit Robots 81 | 29 52 . Core Hits 34 | 12 22 . Critical Kills . | . . . Critical Parts Destroyed . | . . . Critical Strikes 8 | 3 5 . Burn 8 | 3 5 . Melee Attacks . | . . . Impact . | . . . Slashing . | . . . Piercing . | . . . Sneak Attacks . | . . . Combat Hostiles . | . . . Follow-up Attacks . | . . . Damage Inflicted 902 | 306 588 8 Guns 888 | 306 582 . Cannons . | . . . Explosions . | . . . Melee . | . . . Ramming 14 | . 6 8 Kinetic 310 | 104 206 . Thermal 578 | 202 376 . Explosive . | . . . Electromagnetic . | . . . Impact . | . . . Slashing . | . . . Piercing . | . . . Highest Corruption . | . . . Average Corruption . | . . . Corruption Purged . | . . . Corruption Blocked . | . . . Overload Shots . | . . . Overflow Damage . | . . . Projectiles . | . . . Explosions . | . . . Melee . | . . . Knockbacks . | . . . Impact . | . . . Kinetic . | . . . Secondary . | . . . Self-Inflicted Damage 7 | . 3 4 Shots . | . . . Rammed 2 | . 1 1 Targets Rammed 2 | . 1 1 Kicked . | . . . Crushed . | . . . Highest Temperature 362 | 140 362 . Average Temperature 83 | 47 98 . Received Heat Transfer 162 | . 144 18 Effects 1 | . 1 . Matter Decay 1 | . 1 . Siege Activations . | . . . Robots Corrupted . | . . . Combat Hostiles . | . . . Parts Fried . | . . . Impact Corruptions . | . . . Robots Melted . | . . . Combat Hostiles . | . . . Parts Melted 6 | . 6 . Heat Transferred 2294 | 814 1480 . Parts Sabotaged . | . . . Parts Stolen . | . . . Parts Stripped . | . . . Power Chain Reactions . | . . . Alert | -11 -10 -10 ------- Run | Yrd Mat Min Peak Influence 120 | 40 120 25 Initial 26 | . 26 25 Average 43 | 17 54 14 Maximum Alert Level . | . . . Low Security (%) 100 | 100 100 100 Level 1 . | . . . Level 2 . | . . . Level 3 . | . . . Level 4 . | . . . Level 5 . | . . . High Security . | . . . Max Security . | . . . Squads Dispatched 1 | . 1 . Investigation . | . . . Extermination . | . . . Reinforcement 1 | . 1 . Assault . | . . . Garrison . | . . . Intercept . | . . . Searches Triggered . | . . . Construction Impeded . | . . . Haulers Reinforced . | . . . Active Scanning Responses . | . . . Cargo Convoy Interrupts . | . . . Stealth | -11 -10 -10 --------- Run | Yrd Mat Min Distress Signals . | . . . Communications Jammed . | . . . Distress Signals . | . . . Times Spotted 19 | . 14 5 Peak Tracking Total 4 | . 4 4 Tactical Retreats 2 | . 1 1 Traps | -11 -10 -10 ------- Run | Yrd Mat Min Traps Triggered . | . . . Indirectly . | . . . Trap Hack Attempts . | . . . Triggered . | . . . Disarmed . | . . . Reprogrammed . | . . . Reused . | . . . Traps Extracted . | . . . Installed . | . . . Triggered . | . . . Machines | -11 -10 -10 ---------- Run | Yrd Mat Min Machines Disabled . | . . . Max in Single Turn . | . . . Machines Repaired . | . . . Machines Dismantled . | . . . Machines Sabotaged . | . . . Overloaded Fab Kills . | . . . Hacking | -11 -10 -10 --------- Run | Yrd Mat Min Machines Accessed 3 | . 3 . Terminals 3 | . 3 . Fabricators . | . . . Repair Stations . | . . . Recycling Units . | . . . Scanalyzers . | . . . Garrison Access . | . . . Total Hacks 14 | . 14 . Successful 6 | . 6 . Failed 8 | . 8 . Catastrophic 1 | . 1 . Database Lockouts . | . . . Manual . | . . . Terminals 14 | . 14 . Fabricators . | . . . Repair Stations . | . . . Recycling Units . | . . . Scanalyzers . | . . . Garrison Access . | . . . Terminal Hacks 6 | . 6 . Dispatch Records 1 | . 1 . Maintenance Status 1 | . 1 . Surveillance Status 1 | . 1 . Hauler Manifests 2 | . 2 . Zone Layout 1 | . 1 . Fabricator Hacks . | . . . Repair Station Hacks . | . . . Recycling Unit Hacks . | . . . Scanalyzer . | . . . Garrison Access Hacks . | . . . Unauthorized Hacks . | . . . Terminals . | . . . Fabricators . | . . . Repair Stations . | . . . Recycling Units . | . . . Scanalyzers . | . . . Garrison Access . | . . . Data Cores Recovered . | . . . Used . | . . . Hacking Detections 3 | . 3 . Full Trace Events . | . . . Feedback Events . | . . . Feedback Blocked . | . . . Robot Schematics Acquired . | . . . Robots Built . | . . . Authchips . | . . . Time . | . . . Total Robot Build Rating . | . . . Part Schematics Acquired . | . . . Parts Built . | . . . Authchips . | . . . Time . | . . . Total Part Build Rating . | . . . Parts Repaired . | . . . Time . | . . . Parts Recycled . | . . . Recycled Matter . | . . . Retrieved Matter . | . . . Retrieved Components . | . . . Parts Scanalyzed . | . . . Part Schematics Acquired . | . . . Parts Damaged . | . . . Bothacking | -11 -10 -10 ------------ Run | Yrd Mat Min Used RIF Installer . | . . . Robots Hacked . | . . . Non-combat . | . . . Combat . | . . . Robot Hacks Applied . | . . . Relay Couplers Released . | . . . Fabnet Peak Effective % . | . . . Robots Rewired . | . . . Allies Hacked . | . . . Hacks Repelled . | . . . Allies | -11 -10 -10 -------- Run | Yrd Mat Min Total Allies . | . . . Largest Group . | . . . Highest-Rated Group . | . . . Highest-Rated Ally . | . . . Total Orders . | . . . Ally Attacks . | . . . Total Damage . | . . . Kills . | . . . Allies Corrupted . | . . . Allies Melted . | . . . Intel | -11 -10 -10 ------- Run | Yrd Mat Min Robot Analysis Total . | . . . Derelict Logs Recovered . | . . . Drone Launches . | . . . Drone Recoveries . | . . . Exploration | -11 -10 -10 ------------- Run | Yrd Mat Min Turns Passed 906 | 180 635 91 Spaces Moved 764 | 113 547 104 Core 3 | 3 . . Treads . | . . . Legs . | . . . Wheels 761 | 110 547 104 Hover . | . . . Flight . | . . . Fastest Speed 50 | 50 80 80 Average Speed 79 | 79 80 80 Slowest Speed 95 | 80 80 95 Overloaded Moves . | . . . Propulsion Burnouts . | . . . Robots Hopped . | . . . Cave-ins Triggered . | . . . Exploration Rate (%) 21 | 6 36 22 Regions Visited 2 Branch Regions 1 Pre-discovered Areas . | . . . Known Exits Taken . | . . . Unknown Exits Taken 2 | 1 1 . Scrap Searched 1 | . . 1 Spaces Dug . | . . . Terrain Destroyed . | . . . Melee . | . . . Projectile . | . . . AOE . | . . . Terrain Rammed . | . . . Walls Destroyed . | . . . Machines Disabled . | . . . Actions | -11 -10 -10 --------- Run | Yrd Mat Min Total 926 | 160 655 111 Wait 47 | . 47 . Move 762 | 112 546 104 Hop . | . . . Pick Up 19 | 14 4 1 Fast Attach 3 | . 3 . Attach 11 | 6 1 4 Detach 1 | . . 1 Swap 2 | 2 . . Drop 5 | 2 3 . Fire 74 | 24 50 . Melee . | . . . Ram 2 | . 1 1 Kick . | . . . Crush . | . . . Escape Stasis . | . . . Rewire . | . . . Trap . | . . . Miscellaneous . | . . . Route ------- -11/Scrapyard -10/Materials -10/Mines History --------- Turn | Location | Event 12 | -11/Scrapyard | Discovered new exit (range 15) 181 | -11/Scrapyard | Entered Materials 315 | -10/Materials | Build established: Mutant 528 | -10/Materials | Discovered new exit (range 14) 816 | -10/Materials | Entered Mines 817 | -10/Mines | Assembled infested the area 881 | -10/Mines | Core integrity fell below 50% 886 | -10/Mines | Core integrity fell below 20% 890 | -10/Mines | Received a Rocket Launcher from a helpful Derelict 907 | -10/Mines | Destroyed by as-09730 with Assembled Heavy Rifle Last Messages --------------- 00884_ A derelict emerges from the shadows. 00885_ 1M-GB3(g): "Some of my friends down here think you need a mining laser when you travel the depths." 00886_ 1M-GB3(g): "Pshh... whatever." 00887_ 1M-GB3(g): "Everyone knows a good old rocket launcher goes a long way." 00887_ Wheel destroyed. 00888_ 1M-GB3(g): "Need to get rid of a swarm? Done. Need a big hole in the wall? Done." 00889_ 1M-GB3(g): "Need a small hole in the wall? Leave that to the mining laser wimps, I say!" 00889_ Wheel destroyed. 00890_ 1M-GB3(g): "Would you like a rocket launcher? I know I would if I were you, so I'm going to lend you mine." 00890_ 1M-GB3(g) slips back into the shadows. 00891_ Acquired Rocket Launcher. 00893_ Lgt. Ion Engine destroyed. Map ----- +----------------------------------------------------+ | ????????#!%! ##??# #??# #???? | | ????????###### ##??# #??# #???? | | ?????????????# ##?# ####!#???? | | ?????????????# #?# !%#???? | | ??????#####?## #?######=###### | | ?????## ### ##?????# ## | | ????## ##??????# """ #? | | ???## =###???### """ #? | | ???# =%! """ #? | | ???# ## ############ #? | | ???## a### #??????????#########? | | ????### #???????????????????? | | ??????# #####???????????????????? | | ??????# #??????????????????????? | | ??????# #??????????????????????? | | ??????## #??????????????????????? | | ???????# #??????????????????????? | | ???????# #??????????????????????? | | ???????# #??????????????????????? | | ???????# #??????????????????????? | | ???????# #??????????????????????? | | ???????# #??????????????????????? | | ???????# a#??????????????????????? | | ???????# #??????????????????????? | | ??????## #??????????????????????? | | ??????# @#??????????????????????? | | ?????# ?????????????????????? | | ??? ???????????????????? | | ??# #??????????????????? | | ??# ###### ##??????????????????? | | ??# ??????###???????????????????? | | ??# ?????????????????????????????? | | ??# ?????????????????????????????? | | ??#??????????????????????????????? | | ?????????????????????????????????? | | ?????????????????????????????????? | | ?????????????????????????????????? | | ?????????????????????????????????? | | ?????????????????????????????????? | | ?????????????????????????????????? | | ?????????????????????????????????? | | ?????????????????????????????????? | | ?????????????????????????????????? | | ?????????????????????????????????? | | ?????????????????????????????????? | | ?????????????????????????????????? | | ?????????????????????????????????? | | ?????????????????????????????????? | | ?????????????????????????????????? | | ?????????????????????????????????? | +----------------------------------------------------+ Best States ------------- Heat Dissipation 25 Energy Generation 10 Energy Capacity 250 Matter Stores 300 Matter Capacity 300 Sight Range 16 Terrain Scan Density 10 Armor Coverage 150 Weapon Shielding 33 Evasion (%) 44 Item Schematics ----------------- None Robot Schematics ------------------ None Fabricated ------------ Nothing Alien Tech Used ----------------- None Achievements -------------- None Challenges ------------ None Game ------ Seed SigixInsulationMembrane Manual? 0 Play Time 00:17:09 Cumulative 40.9 hours Start 2024.07.07 @ 20:30:41 End 2024.07.07 @ 20:45:39 Sessions 1 Manual Loads 0 Difficulty Rogue Special Mode None Game No. 22 Rogue 12 Adventurer 10 Explorer 0 Win Type - Total 0 Types 0/0/0/0/0/0/0/0/0 Lore% 10 Gallery% 29 Achievement% 23 Wizard Run 0 Options --------- Layout 1 ASCII 0 Keyboard 0 Movement Mouse Keybinds 0 Fullscreen 2 Font 24/Smallcaps Map View 50x35 Zoom Use 0% Tactical HUD 1 Map Filters NONE Filters NONE Steam 1 RUN: 6f2e08ac-95ed-44cc-a62d-b9cf6ea66b97